bitfinex/quotes_SOLUSD_20240813
["timestamp","ask_amount","ask_price","bid_price","bid_amount"]
[1723555119823,6.8325,146.36,146.32,51.8339]
[1723555120218,6.3866,146.38,146.34,6.833]
[1723555120425,6.3866,146.38,146.35,45.0]
[1723555120648,6.3866,146.38,146.35,51.8326]
[1723555121016,6.8302,146.41,146.37,6.8319]
[1723555121213,6.8297,146.42,146.38,6.8312]
[1723555121442,6.8297,146.42,146.38,51.8312]
[1723555121760,23.1125,146.43,146.34,6.8332]
[1723555122070,6.8312,146.39,146.35,45.0]
[1723555122243,6.8312,146.39,146.35,51.95819]
[1723555122424,6.8299,146.42,146.37,6.8316]
[1723555122615,6.8301,146.41,146.38,45.0]
[1723555122816,6.8307,146.4,146.38,45.0]
[1723555123039,6.8307,146.4,146.37,45.0]
[1723555123242,17.0744,146.42,146.33,6.8337]
[1723555123444,20.0,146.41,146.34,45.0]
[1723555123748,6.8321,146.37,146.33,51.8337]
[1723555124042,67.15,146.41,146.34,6.8333]
[1723555124248,67.15,146.41,146.35,45.0]
[1723555124249,20.0,146.41,146.35,45.0]
[1723555124430,20.0,146.42,146.35,45.0]
[1723555124819,6.8312,146.39,146.35,45.0]
[1723555125036,6.8307,146.4,146.35,45.0]
[1723555125319,6.8311,146.39,146.35,68.9145]
[1723555125548,6.8315,146.38,146.35,45.0]
[1723555125728,6.8312,146.39,146.35,45.0]
[1723555125926,6.8323,146.37,146.35,45.0]
[1723555126141,64.226,146.41,146.34,45.0]
[1723555126354,6.8329,146.35,146.33,45.0]
[1723555126733,47.15,146.41,146.34,17.0828]
[1723555126959,20.0,146.4,146.35,45.0]
[1723555127246,26.83,146.42,146.36,17.20619]
[1723555127420,6.0387,146.43,146.39,6.8307]
[1723555127617,6.0387,146.43,146.38,17.0785]
[1723555127618,6.8296,146.42,146.38,23.9098]
[1723555127929,6.8297,146.42,146.39,45.0]
[1723555128126,21.685,146.48,146.4,17.32638]
[1723555128325,21.685,146.48,146.41,45.0]
[1723555128637,6.8281,146.46,146.41,45.0]
[1723555128859,38.7525,146.48,146.41,45.0]
[1723555129023,6.8293,146.43,146.41,45.0]
[1723555129219,6.8288,146.44,146.4,51.95599]
[1723555129425,38.7525,146.48,146.4,45.12549]
[1723555129658,6.8274,146.47,146.43,6.829]
[1723555129823,6.8279,146.46,146.42,6.8295]
[1723555130142,6.8279,146.46,146.43,45.0]
[1723555130546,6.8279,146.46,146.39,0.12549]
[1723555130547,20.0,146.47,146.38,23.9093]
[1723555130749,68.8576128,146.47,146.37,0.25098]
[1723555130918,6.8302,146.41,146.38,0.12549]
[1723555131122,67.15,146.47,146.37,17.0797]
[1723555131427,6.8293,146.43,146.38,6.8312]
[1723555131632,17.0703,146.46,146.37,23.9115]
[1723555131933,6.8292,146.43,146.39,6.8307]
[1723555132135,6.829,146.44,146.37,17.0797]
[1723555132461,21.685,146.48,146.42,17.0738]
[1723555132627,21.685,146.48,146.43,45.0]
[1723555132955,47.15,146.51,146.43,45.0]
[1723555133326,6.8282,146.45,146.43,45.0]
[1723555133526,17.0657,146.5,146.4,0.12549]
[1723555133855,6.829,146.44,146.4,51.95589]
[1723555134056,6.8284,146.45,146.4,51.95589]
[1723555134351,6.8291,146.44,146.39,17.0767]
[1723555134653,6.8291,146.44,146.4,6.8303]
[1723555135224,6.8284,146.45,146.4,6.8303]
[1723555135440,6.8274,146.47,146.41,17.0742]
[1723555135621,6.8279,146.46,146.42,0.12549]
[1723555135827,0.8187459,146.49,146.41,17.0742]
[1723555135828,6.8283,146.45,146.41,23.9041]
[1723555136040,6.8277,146.47,146.41,17.0742]
[1723555136247,6.827,146.48,146.43,6.8288]
[1723555136959,0.8187459,146.49,146.46,6.8273]
[1723555137124,0.8187459,146.49,146.47,45.0]
[1723555137324,0.8187459,146.49,146.46,6.8273]
[1723555137325,0.8187459,146.49,146.45,23.8976]
[1723555137559,0.8187459,146.49,146.46,6.8277]
[1723555137924,0.8187459,146.49,146.47,45.0]
[1723555138130,0.8187459,146.49,146.48,6.8268]
[1723555138354,0.8187459,146.49,146.47,17.068]
[1723555138553,0.8187459,146.49,146.48,45.0]
[1723555140431,0.8187459,146.49,146.48,52.32876]
[1723555141365,0.8187459,146.49,146.48,52.20327]
[1723555141676,0.8187459,146.49,146.48,45.0]
[1723555141834,0.8187459,146.49,146.48,51.95229]
[1723555142039,0.8187459,146.49,146.48,52.07778]
[1723555143067,0.8187459,146.49,146.48,45.0]
[1723555143270,0.8187459,146.49,146.46,6.8273]
[1723555143271,0.8187459,146.49,146.47,45.0]
[1723555143863,0.8187459,146.49,146.48,7.07778]
[1723555144072,0.8187459,146.49,146.48,52.32876]
[1723555145844,0.8187459,146.49,146.48,52.20327]
[1723555146372,0.8187459,146.49,146.48,52.32876]
[1723555147972,0.8187459,146.49,146.48,73.75916]
[1723555148143,0.8187459,146.49,146.48,93.75916]
[1723555148581,0.8187459,146.49,146.48,7.32876]
[1723555149274,0.8187459,146.49,146.48,7.20327]
[1723555150145,0.8187459,146.49,146.48,27.20327]
[1723555150547,0.8187459,146.49,146.48,72.32876]
[1723555150769,0.8187459,146.49,146.48,27.07778]
[1723555151377,0.8187459,146.49,146.48,7.07778]
[1723555151959,0.8187459,146.49,146.48,52.32876]
[1723555152347,0.8187459,146.49,146.48,72.32876]
[1723555152883,0.8187459,146.49,146.48,52.32876]
[1723555153754,0.8187459,146.49,146.48,6.8268]
[1723555155275,0.8187459,146.49,146.48,52.07778]
[1723555155789,0.8187459,146.49,146.48,72.32876]
[1723555156086,0.8187459,146.49,146.48,51.8268]
[1723555157155,0.8187459,146.49,146.48,52.07778]
[1723555157559,0.8187459,146.49,146.47,6.8271]
[1723555157778,0.8187459,146.49,146.48,6.8268]
[1723555158888,0.8187459,146.49,146.48,7.07778]
[1723555159089,0.8187459,146.49,146.48,52.20327]
[1723555159458,0.8187459,146.49,146.48,45.25098]
[1723555159658,0.8187459,146.49,146.48,0.12549]
[1723555160189,0.8187459,146.49,146.48,6.95229]
[1723555160381,0.8187459,146.49,146.48,52.07778]
[1723555160555,0.8187459,146.49,146.48,45.0]
[1723555160762,0.8187459,146.49,146.46,17.0691]
[1723555160983,0.8187459,146.49,146.46,23.8967]
[1723555161187,0.8187459,146.49,146.46,17.0691]
[1723555161485,0.8187459,146.49,146.47,6.8272]
[1723555162015,0.8187459,146.49,146.48,6.8268]
[1723555162582,0.8187459,146.49,146.48,51.95229]
[1723555162783,0.8187459,146.49,146.48,52.07778]
[1723555162995,0.8187459,146.49,146.48,52.20327]
[1723555163496,0.8187459,146.49,146.48,52.32876]
[1723555164873,0.8187459,146.49,146.48,52.20327]
[1723555165075,0.8187459,146.49,146.48,45.12549]
[1723555165281,0.8187459,146.49,146.48,51.8268]
[1723555165593,0.8187459,146.49,146.48,45.37647]
[1723555166695,0.8187459,146.49,146.48,45.0]
[1723555166899,0.8187459,146.49,146.47,45.12549]
[1723555167118,7.6451459,146.49,146.45,6.8279]
[1723555167403,6.8268,146.48,146.44,6.8285]
[1723555168099,7.6452459,146.49,146.45,6.8282]
[1723555168274,0.8187459,146.49,146.45,17.0704]
[1723555168692,0.8187459,146.49,146.46,6.8273]
[1723555168869,0.8187459,146.49,146.47,24.14578]
[1723555169072,7.6452459,146.49,146.46,45.0]
[1723555169688,6.827,146.48,146.46,45.0]
[1723555169887,6.827,146.48,146.45,45.0]
[1723555171189,6.8271,146.48,146.45,45.0]
[1723555171382,6.8275,146.47,146.45,45.0]
[1723555171818,6.827,146.48,146.45,45.0]
[1723555171977,6.8273,146.47,146.45,45.0]
[1723555172297,6.8273,146.47,146.44,45.0]
[1723555172673,6.8278,146.46,146.44,45.0]
[1723555172974,6.8278,146.46,146.42,6.8294]
[1723555173174,12.9038,146.47,146.43,6.8291]
[1723555173382,6.0764,146.47,146.44,6.8286]
[1723555173581,16.1375459,146.49,146.47,6.8272]
[1723555173788,16.1375459,146.49,146.45,17.0704]
[1723555173789,16.1375459,146.49,146.46,6.8276]
[1723555174203,22.9639459,146.49,146.45,23.8985]
[1723555174385,16.1375459,146.49,146.45,17.0704]
[1723555174786,6.8274,146.47,146.39,34.1535]
[1723555174999,47.4975459,146.49,146.42,17.19929]
[1723555175176,6.827,146.48,146.44,6.8284]
[1723555175589,6.827,146.48,146.45,45.0]
[1723555175791,47.4975459,146.49,146.45,51.8281]
[1723555175792,54.3240459,146.49,146.45,51.8281]
[1723555176310,22.9640459,146.49,146.45,51.8281]
[1723555176688,6.8274,146.47,146.44,17.0715]
[1723555176894,6.8271,146.48,146.44,23.9002]
[1723555177395,6.8273,146.47,146.44,17.0715]
[1723555177600,6.8273,146.47,146.43,6.829]
[1723555177782,6.8278,146.46,146.44,45.0]
[1723555177988,49.20467543,146.49,146.41,17.0743]
[1723555178182,49.20467543,146.49,146.42,0.12549]
[1723555178389,6.8281,146.46,146.42,6.8296]
[1723555178589,6.8282,146.45,146.41,23.9041]
[1723555179212,6.8279,146.46,146.42,51.8295]
[1723555179516,31.36,146.47,146.42,45.0]
[1723555180090,38.1876,146.47,146.43,6.8291]
[1723555180289,6.8281,146.46,146.42,51.8294]
[1723555181415,6.8284,146.45,146.41,23.9043]
[1723555181910,6.8287,146.44,146.41,17.0743]
[1723555182221,6.8283,146.45,146.41,23.9043]
[1723555183332,6.8279,146.46,146.42,6.8296]
[1723555183623,50.17372577,146.49,146.43,17.0728]
[1723555183790,6.8271,146.48,146.44,51.8286]
[1723555185022,54.3240459,146.49,146.45,6.8281]
[1723555185404,6.8268,146.48,146.45,6.8281]
[1723555185607,47.4975459,146.49,146.45,6.8281]
[1723555185608,0.8187459,146.49,146.47,6.8271]
[1723555185807,0.8187459,146.49,146.46,6.8277]
[1723555185994,7.6452459,146.49,146.45,23.8985]
[1723555186395,6.8269,146.48,146.44,51.8285]
[1723555186695,6.8273,146.47,146.44,45.0]
[1723555186896,6.827,146.48,146.44,51.8286]
[1723555187096,6.8273,146.47,146.44,51.8286]
[1723555187297,6.828,146.46,146.42,23.9024]
[1723555187496,6.828,146.46,146.43,45.0]
[1723555188497,7.6451459,146.49,146.44,17.19629]
[1723555188697,0.8187459,146.49,146.45,45.25098]
[1723555188897,0.8187459,146.49,146.46,6.8275]
[1723555189203,0.8187459,146.49,146.45,45.25098]
[1723555189404,6.8271,146.48,146.45,45.0]
[1723555189719,6.8273,146.47,146.45,45.0]
[1723555189934,6.8273,146.47,146.31,285.91183929]
[1723555189935,6.8287,146.44,146.41,23.9041]
[1723555190129,31.36,146.47,146.36,40.1677]
[1723555190425,31.36,146.45,146.38,17.078]
[1723555190599,1.7075148,146.44,146.38,17.078]
[1723555190801,6.8299,146.42,146.38,23.9094]
[1723555191123,33.06763975,146.41,146.35,23.9141]
[1723555191618,33.06763975,146.41,146.36,6.8322]
[1723555191619,31.36,146.41,146.36,6.8322]
[1723555192195,6.8309,146.4,146.36,6.8322]
[1723555192395,6.8312,146.39,146.35,23.9141]
[1723555192706,37.6595,146.43,146.37,6.8319]
[1723555193017,6.2995,146.43,146.33,65.5292]
[1723555193324,13.1287,146.43,146.39,23.9077]
[1723555193538,6.8297,146.42,146.39,17.077]
[1723555194096,6.2995,146.43,146.39,17.077]
[1723555194097,6.2995,146.43,146.4,6.8302]
[1723555194334,31.36,146.45,146.41,51.83]
[1723555194335,6.8286,146.45,146.41,51.83]
[1723555194705,6.8289,146.44,146.41,45.0]
[1723555194899,6.8295,146.43,146.39,17.077]
[1723555195237,6.8293,146.43,146.37,0.12549]
[1723555195409,6.8288,146.44,146.4,51.8304]
[1723555195612,6.8292,146.43,146.4,45.0]
[1723555196630,6.8288,146.44,146.4,51.8305]
[1723555196845,6.8292,146.43,146.4,45.0]
[1723555197017,31.36,146.45,146.4,45.0]
[1723555197213,6.83,146.42,146.39,45.0]
[1723555197410,6.8301,146.41,146.39,45.0]
[1723555197727,48.431,146.45,146.39,45.0]
[1723555198802,31.36,146.43,146.36,6.95769]
[1723555199023,6.8302,146.41,146.37,6.95739]
[1723555199330,31.36,146.43,146.37,17.20529]
[1723555200046,38.1893,146.43,146.39,6.831]
[1723555200332,6.8293,146.43,146.39,6.831]
[1723555200829,6.8289,146.44,146.4,6.8305]
[1723555201206,31.36,146.45,146.39,23.9084]
[1723555201417,31.36,146.43,146.37,0.12549]
[1723555201714,6.8304,146.41,146.37,51.95719]
[1723555202120,35.62362844,146.46,146.4,6.8305]
[1723555202121,6.829,146.44,146.4,6.8305]
[1723555202302,6.829,146.44,146.41,45.0]
[1723555202503,6.8292,146.43,146.41,45.0]
[1723555202701,6.8292,146.43,146.4,51.8305]
[1723555202933,6.8289,146.44,146.4,51.8305]
[1723555203120,44.3448,146.47,146.43,6.829]
[1723555203433,12.985,146.47,146.43,6.829]
[1723555203612,12.9848,146.47,146.44,45.0]
[1723555203934,12.9848,146.47,146.42,17.0737]
[1723555203935,6.1574,146.47,146.42,17.0737]
[1723555204103,6.8279,146.46,146.43,45.0]
[1723555204841,6.8279,146.46,146.43,51.8291]
[1723555205334,6.1574,146.47,146.43,45.0]
[1723555205710,6.8281,146.46,146.43,45.0]
[1723555205909,2.68018903,146.48,146.43,45.0]
[1723555206109,0.8187459,146.49,146.44,17.19709]
[1723555206307,0.8187459,146.49,146.47,6.827]
[1723555207140,0.8187459,146.49,146.46,23.8965]
[1723555207431,7.6454459,146.49,146.47,45.0]
[1723555207625,7.6454459,146.49,146.45,6.95339]
[1723555207825,7.6454459,146.49,146.46,51.8277]
[1723555207826,0.8187459,146.49,146.46,51.8277]
[1723555208026,0.8187459,146.49,146.47,6.8272]
[1723555208736,0.8187459,146.49,146.48,51.8268]
[1723555208946,0.8187459,146.49,146.48,51.95229]
[1723555209233,0.8187459,146.49,146.48,52.74341036]
[1723555209407,0.8187459,146.49,146.48,52.32876]
[1723555209835,0.8187459,146.49,146.48,72.32876]
[1723555210816,0.8187459,146.49,146.48,52.32876]
[1723555211136,0.8187459,146.49,146.48,45.0]
[1723555211323,0.8187459,146.49,146.46,6.8277]
[1723555211528,0.8187459,146.49,146.47,51.8272]
[1723555212037,0.8187459,146.49,146.47,45.0]
[1723555212225,0.8187459,146.49,146.48,6.8268]
[1723555212428,0.8187459,146.49,146.48,51.8268]
[1723555212739,0.8187459,146.49,146.48,45.0]
[1723555212941,0.8187459,146.49,146.46,23.8968]
[1723555213141,0.8187459,146.49,146.43,17.0721]
[1723555213336,6.8272,146.48,146.44,6.8284]
[1723555213535,7.6452459,146.49,146.44,6.8284]
[1723555213714,7.6452459,146.49,146.45,6.828]
[1723555214035,0.8187459,146.49,146.43,17.0721]
[1723555214239,0.8187459,146.49,146.45,6.8281]
[1723555214432,0.8187459,146.49,146.46,6.8277]
[1723555214647,0.8187459,146.49,146.48,6.8268]
[1723555214937,0.8187459,146.49,146.47,17.068]
[1723555215341,0.8187459,146.49,146.47,23.8951]
[1723555215639,0.8187459,146.49,146.48,6.8268]
[1723555215851,0.8187459,146.49,146.48,45.0]
[1723555216237,7.6452459,146.49,146.45,0.12549]
[1723555216549,0.8187459,146.49,146.45,45.37647]
[1723555216744,6.8269,146.48,146.45,45.37647]
[1723555217252,0.8187459,146.49,146.46,6.8277]
[1723555217621,7.6452459,146.49,146.45,52.20457]
[1723555218158,7.6451459,146.49,146.45,52.20447]
[1723555219026,6.8268,146.48,146.45,45.0]
[1723555219532,7.6452459,146.49,146.45,51.828]
[1723555219733,0.8187459,146.49,146.45,51.8281]
[1723555219948,7.6453459,146.49,146.45,51.8281]
[1723555220150,6.8269,146.48,146.45,45.0]
[1723555220529,0.8187459,146.49,146.45,51.8281]
[1723555220530,7.6451459,146.49,146.45,51.8281]
[1723555221443,6.8268,146.48,146.45,45.0]
[1723555221631,0.8187459,146.49,146.45,45.0]
[1723555221632,7.6451459,146.49,146.45,45.0]
[1723555221832,7.6451459,146.49,146.45,51.828]
[1723555222146,7.6451459,146.49,146.45,51.8279]
[1723555222459,0.8187459,146.49,146.46,6.8275]
[1723555222664,0.8187459,146.49,146.47,6.8272]
[1723555223926,0.8187459,146.49,146.46,17.0693]
[1723555224151,0.8187459,146.49,146.48,6.8268]
[1723555224459,0.8187459,146.49,146.36,19.21066047]
[1723555224460,32.1787459,146.49,146.36,19.21066047]
[1723555224661,31.36,146.47,146.36,16.5415]
[1723555224858,31.36,146.47,146.4,17.0757]
[1723555225049,31.36,146.47,146.37,17.0791]
[1723555225050,23.2918,146.46,146.37,17.0791]
[1723555225233,31.36,146.43,146.33,34.1679]
[1723555225436,31.36,146.43,146.35,6.8326]
[1723555225437,6.8312,146.39,146.35,6.8326]
[1723555225869,6.8307,146.4,146.36,6.8323]
[1723555226235,31.36,146.43,146.36,6.8323]
[1723555226236,6.8302,146.41,146.36,6.8323]
[1723555226456,6.8302,146.41,146.37,6.8319]
[1723555227356,6.8308,146.4,146.36,23.9131]
[1723555227532,6.8311,146.39,146.35,6.8328]
[1723555227740,6.8307,146.4,146.36,6.8324]
[1723555228431,6.8307,146.4,146.35,6.8327]
[1723555228757,6.8307,146.4,146.36,6.8324]
[1723555229267,31.36,146.41,146.37,51.8319]
[1723555229268,6.8302,146.41,146.37,51.8319]
[1723555229758,31.36,146.43,146.38,0.12549]
[1723555229947,16.355,146.44,146.38,0.37647]
[1723555230259,16.355,146.44,146.37,62.0797]
[1723555230652,6.8301,146.41,146.37,68.9116]
[1723555231050,6.8307,146.4,146.37,45.0]
[1723555231250,6.8307,146.4,146.36,51.8324]
[1723555231450,6.8302,146.41,146.37,6.8319]
[1723555231653,6.8302,146.41,146.38,45.0]
[1723555231969,6.831,146.39,146.36,62.0808]
[1723555232171,33.06785381,146.43,146.32,16.5777]
[1723555232172,31.36,146.43,146.32,16.5777]
[1723555232335,31.36,146.43,146.3,6.4759]
[1723555232336,37.9211,146.39,146.3,17.0872]
[1723555232534,46.7702,146.37,146.27,17.0908]
[1723555232740,6.8355,146.3,146.26,6.8369]
[1723555233046,6.8355,146.3,146.25,6.8374]
[1723555233242,6.8367,146.27,146.21,17.0985]
[1723555233550,6.8363,146.28,146.21,17.0985]
[1723555233759,6.8358,146.29,146.24,6.8379]
[1723555233938,6.8362,146.28,146.24,6.8379]
[1723555234443,38.1958,146.29,146.24,6.8379]
[1723555235164,38.1958,146.29,146.25,6.8374]
[1723555235345,6.8363,146.28,146.24,6.8379]
[1723555235666,38.1958,146.29,146.24,6.8379]
[1723555235864,6.8358,146.29,146.24,6.8379]
[1723555236170,17.337156,146.28,146.23,23.9342]
[1723555236348,6.8371,146.27,146.23,17.0958]
[1723555236570,8.54672089,146.26,146.22,6.839]
[1723555236864,6.8366,146.27,146.22,6.839]
[1723555237055,22.4642,146.28,146.23,6.8382]
[1723555237568,6.8374,146.26,146.22,17.0967]
[1723555238068,15.6279,146.28,146.22,17.0967]
[1723555238069,6.8376,146.25,146.22,17.0967]
[1723555238239,6.8381,146.24,146.2,6.8398]
[1723555238661,6.8381,146.24,146.2,6.8399]
[1723555238854,39.33,146.27,146.21,17.0978]
[1723555239082,15.6279,146.28,146.21,17.0978]
[1723555239290,15.6279,146.28,146.25,6.8374]
[1723555239455,6.8355,146.3,146.25,23.931]
[1723555239658,39.33,146.31,146.25,17.0936]
[1723555239952,25.85673067,146.32,146.25,17.0936]
[1723555240166,23.1632,146.32,146.26,45.0]
[1723555240381,6.8349,146.31,146.26,51.8369]
[1723555240590,6.8349,146.31,146.27,6.8364]
[1723555240888,29.9976,146.32,146.27,6.8364]
[1723555241094,22.2489,146.36,146.28,45.0]
[1723555241265,25.0534208,146.36,146.29,17.33968]
[1723555241578,22.2489,146.36,146.3,6.8349]
[1723555241766,6.3446,146.36,146.34,6.8332]
[1723555241962,59.18162026,146.39,146.31,45.0]
[1723555242162,59.18162026,146.39,146.28,0.12549]
[1723555242163,6.8343,146.32,146.28,6.96149]
[1723555242476,6.8337,146.34,146.29,51.8357]
[1723555242657,39.33,146.37,146.3,0.25098]
[1723555242974,2.77372026,146.39,146.32,6.8341]
[1723555243163,6.8327,146.36,146.32,17.0849]
[1723555243372,39.33,146.39,146.33,6.8335]
[1723555243555,41.07276672,146.4,146.33,6.8335]
[1723555243755,6.8327,146.36,146.32,17.0849]
[1723555243968,6.8329,146.35,146.3,7.08608]
[1723555244177,6.8329,146.35,146.31,45.12549]
[1723555244385,6.8329,146.35,146.31,45.0]
[1723555244574,6.8329,146.35,146.31,51.8347]
[1723555244767,6.8316,146.38,146.32,0.12549]
[1723555245085,6.8316,146.38,146.34,6.8332]
[1723555245295,6.832,146.37,146.33,23.9179]
[1723555245580,23.99566672,146.4,146.37,6.8317]
[1723555245581,6.2826,146.4,146.37,6.8317]
[1723555245887,6.8319,146.38,146.33,6.8334]
[1723555246070,6.8319,146.38,146.34,45.0]
[1723555246269,6.8319,146.38,146.34,51.8333]
[1723555246484,6.8312,146.39,146.35,6.95829]
[1723555246785,17.0747,146.42,146.37,0.12549]
[1723555246786,6.8298,146.42,146.37,0.12549]
[1723555246957,21.1586,146.44,146.4,6.8305]
[1723555247163,27.9876,146.44,146.37,0.25098]
[1723555247364,6.8293,146.43,146.39,6.8309]
[1723555247669,6.8296,146.42,146.4,45.0]
[1723555247863,21.1586,146.44,146.37,0.12549]
[1723555248057,6.8293,146.43,146.39,6.8309]
[1723555248256,63.3308459,146.49,146.41,0.12549]
[1723555248466,6.9345459,146.49,146.45,6.8279]
[1723555248757,6.9345459,146.49,146.46,45.0]
[1723555248977,6.9345459,146.49,146.43,17.0723]
[1723555248978,6.8269,146.48,146.43,23.9013]
[1723555249262,6.8269,146.48,146.44,45.0]
[1723555249573,13.7609459,146.49,146.45,0.12549]
[1723555249777,6.9345459,146.49,146.44,45.0]
[1723555249969,6.8269,146.48,146.44,51.8286]
[1723555250171,6.8269,146.48,146.44,45.0]
[1723555250480,6.8274,146.47,146.44,45.0]
[1723555250794,6.9345459,146.49,146.43,45.12549]
[1723555251088,6.9345459,146.49,146.46,6.8277]
[1723555251271,0.8187459,146.49,146.47,45.0]
[1723555251477,0.8187459,146.49,146.47,51.8273]
[1723555251694,6.8279,146.46,146.4,17.0757]
[1723555251893,6.8292,146.43,146.39,6.831]
[1723555252194,6.8292,146.43,146.38,6.831]
[1723555252368,56.3987,146.47,146.37,17.0791]
[1723555252568,6.8302,146.41,146.35,6.4147]
[1723555252871,6.8298,146.42,146.38,6.8314]
[1723555253478,6.6619,146.44,146.37,6.8319]
[1723555253679,6.8298,146.42,146.38,6.8314]
[1723555254178,6.8298,146.42,146.39,45.25098]
[1723555255289,6.8306,146.4,146.36,17.0805]
[1723555256101,1.70746611,146.43,146.32,79.6114]
[1723555256403,6.8313,146.39,146.34,6.833]
[1723555256783,56.4056,146.41,146.33,17.0838]
[1723555257097,39.33,146.39,146.31,103.99345751]
[1723555257268,6.6619,146.44,146.38,17.0778]
[1723555257475,6.6619,146.44,146.36,6.8323]
[1723555257476,6.8304,146.41,146.36,6.8323]
[1723555258299,6.8304,146.41,146.37,51.95739]
[1723555258881,6.6619,146.44,146.38,6.8314]
[1723555259077,6.6619,146.44,146.38,0.12549]
[1723555259297,6.6619,146.44,146.41,6.83]
[1723555259597,22.3096,146.46,146.41,17.0745]
[1723555259897,22.3096,146.46,146.42,51.8293]
[1723555260103,6.8284,146.45,146.42,45.0]
[1723555260597,6.2001,146.47,146.42,45.0]
[1723555260797,6.2001,146.47,146.43,7.07978]
[1723555260975,6.8278,146.46,146.44,45.0]
[1723555261302,6.8283,146.45,146.41,23.9045]
[1723555261485,6.8278,146.46,146.42,6.95509]
[1723555261683,13.0277,146.47,146.43,51.8287]
[1723555262198,0.8187459,146.49,146.43,62.0727]
[1723555262392,0.8187459,146.49,146.44,0.12549]
[1723555262603,0.8187459,146.49,146.44,0.25098]
[1723555262903,7.6455459,146.49,146.45,17.0704]
[1723555263406,7.6455459,146.49,146.46,45.0]
[1723555263573,6.8273,146.47,146.44,0.25098]
[1723555263782,0.8187459,146.49,146.44,45.25098]
[1723555263998,0.8187459,146.49,146.43,0.12549]
[1723555263999,6.828,146.46,146.43,45.0]
[1723555264208,6.828,146.46,146.36,73.4903]
[1723555264209,1.70721199,146.45,146.39,17.077]
[1723555264407,6.3686,146.46,146.36,17.0804]
[1723555264726,6.8306,146.4,146.36,6.8321]
[1723555264902,6.8304,146.41,146.37,6.8319]
[1723555265107,56.4022,146.44,146.37,17.0793]
[1723555265108,6.8293,146.43,146.37,17.0793]
[1723555265481,6.8296,146.42,146.38,6.8313]
[1723555265684,6.8311,146.39,146.34,23.916]
[1723555265891,6.8306,146.4,146.35,6.8327]
[1723555266083,6.8306,146.4,146.34,17.0828]
[1723555266286,6.8302,146.41,146.34,17.0828]
[1723555266479,56.4023,146.44,146.35,6.8327]
[1723555266684,39.33,146.42,146.34,23.9161]
[1723555266886,6.8329,146.36,146.31,23.921]
[1723555267112,6.0495,146.37,146.28,17.0902]
[1723555267319,6.0495,146.37,146.29,6.8353]
[1723555267320,6.8335,146.34,146.29,6.8353]
[1723555267526,1.7084896,146.36,146.28,6.8361]
[1723555267527,6.8346,146.32,146.28,6.8361]
[1723555267840,6.8346,146.32,146.22,54.6332]
[1723555267841,1.70873313,146.31,146.24,6.8379]
[1723555267990,15.0485,146.33,146.25,6.8375]
[1723555268297,6.8344,146.32,146.27,6.8365]
[1723555268503,6.8344,146.32,146.21,136.55520903]
[1723555268504,15.0485,146.33,146.26,17.0922]
[1723555268809,6.8357,146.29,146.25,6.8374]
[1723555269008,6.8353,146.3,146.26,6.837]
[1723555269189,6.8353,146.3,146.25,17.0934]
[1723555269515,6.8351,146.31,146.25,17.0934]
[1723555269713,6.8358,146.29,146.25,23.9309]
[1723555269896,15.0485,146.33,146.25,17.0934]
[1723555270105,6.8356,146.3,146.26,45.0]
[1723555270289,6.8356,146.3,146.25,23.9306]
[1723555270489,6.8348,146.31,146.26,6.837]
[1723555271106,41.03914036,146.3,146.22,17.0972]